[Event "Serbian League Women 2024"]
[Site "Bajina Basta"]
[Date "2024.10.03"]
[Round "7.6"]
[White "Rakhmangulova, Anastasiya"]
[Black "Roebers, Eline"]
[Result "1/2-1/2"]
[ECO "C00"]
[WhiteElo "2283"]
[BlackElo "2340"]
[Annotator "TA"]
[PlyCount "82"]
[EventDate "2024.09.26"]
[EventType "team-tourn"]
[EventCountry "SRB"]
[SourceTitle "playchess.com"]
[Source "ChessBase"]
[SourceQuality "1"]
[TimeControl "40/5400+30:1800+30"]

{[%evp 9,82,-22,2,0,0,2,10,-15,-4,-29,0,-18,0,-7,43,50,38,34,35,33,32,45,52,36,45,49,49,33,74,71,75,60,59,67,45,0,0,0,0,0,0,0,8,-14,-8,-18,-25,-22,-23,-25,-24,-23,-10,-22,0,0,0,0,0,0,0,0,0,0,0,0,0,0,0,0,0,0,0,-14,0]} 1. e4 {[%emt 0:05:16]} e6 {[%emt 0:00:08]} 2. b3 {[%emt 0:00:14]} b6 {[%emt 0:02:13]} 3. Bb2 {[%emt 0:03:47]} Bb7 {[%emt 0:00:05]} 4. e5 {[%emt 0:01:20]} d6 {[%emt 0:06:20]} 5. exd6 {[%emt 0:04:05]} cxd6 {[%emt 0:00:05]} (5... c5 {is interesting.} 6. Bb5+ Nd7 7. Nf3 Ngf6) 6. Nf3 {[%emt 0:00:24]} Nf6 {[%emt 0:01:08]} 7. d4 {[%emt 0:03:57]} Be7 {[%emt 0:00:59]} 8. g3 {[%emt 0:05:12]} O-O {[%emt 0:03:32][%cal Ob6b5]} 9. Bg2 {[%emt 0:00:06]} Nbd7 {[%emt 0:02:13]} 10. O-O {[%emt 0:00:25]} Rc8 {[%emt 0:01:57]} 11. c4 {[%emt 0:06:35]} Be4 {[%emt 0:05:49]} (11... d5 $11) 12. Nc3 $14 {[%emt 0:02:25][%cal Bb1c3,Bc3e2,Be2f4][%mdl 32]} Bg6 {[%emt 0:04:01]} 13. Rc1 {[%emt 0:06:31]} Ne4 {[%emt 0:10:28]} 14. Ne2 {[%emt 0:11:13]} h6 {[%emt 0:01:52]} 15. Re1 {[%emt 0:02:57]} a6 {[%emt 0:02:46]} 16. Nf4 {[%emt 0:01:56] [#] aiming for Nxg6.} Bh7 {[%emt 0:00:10]} 17. Nd2 {[%emt 0:00:44]} Nef6 {[%emt 0:08:03]} 18. Bh3 {[%emt 0:15:07][%cal Oh3e6]} Qc7 {[%emt 0:08:04] [#]} 19. Nd5 $1 {[%emt 0:05:22]} exd5 {[%emt 0:00:46]} 20. Rxe7 {[%emt 0:00:06] White is more active.} Qd8 {[%emt 0:00:14]} 21. Re1 {[%emt 0:01:02]} b5 {[%emt 0:00:59]} 22. cxd5 {[%emt 0:12:13]} Rxc1 {[%emt 0:06:03]} 23. Qxc1 {[%emt 0:00:08]} Nb6 {[%emt 0:00:02]} 24. Qc6 {[%emt 0:02:09] Black must now prevent Bg2.} Nbxd5 {[%emt 0:02:06]} 25. a3 {[%emt 0:00:23] Prevents Nb4} (25. Qxa6 Nb4 26. Qxb5 Nd3 $19) 25... Qa5 {[%emt 0:02:01]} 26. b4 {[%emt 0:00:28]} Qb6 {[%emt 0:00:50]} 27. Rc1 {[%emt 0:02:34]} Re8 {[%emt 0:01:55]} 28. Qxb6 {[%emt 0:01:08]} Nxb6 {[%emt 0:00:11][%cal Bd5b6,Bb6c4,Bc4d2][%mdl 32]} 29. d5 {[%emt 0:00:15]} Nfxd5 {[%emt 0:03:22] Strongly threatening ...Re2.} 30. Bd4 {[%emt 0:02:05]} Bd3 {[%emt 0:02:21]} 31. Bg2 {[%emt 0:02:51] The position is equal.} Nc4 {[%emt 0:04:31]} 32. Bxd5 {[%emt 0:01:03] This pair of bishops is nice.} Nxd2 {[%emt 0:00:05]} 33. Rd1 {[%emt 0:00:12]} Bc4 {[%emt 0:02:07]} 34. Bxf7+ {[%emt 0:01:13]} (34. Bc6 $5 Rc8 $8 35. Bh1 $11) 34... Kxf7 {[%emt 0:00:06]} 35. Rxd2 $11 {[%emt 0:00:03][%mdl 4096] Endgame. KRB-KRB} Re1+ {[%emt 0:00:58]} 36. Kg2 {[%emt 0:00:01]} g5 {[%emt 0:00:16]} 37. f3 {[%emt 0:01:10]} h5 {[%emt 0:01:08]} 38. Kf2 {[%emt 0:01:28]} Rf1+ {[%emt 0:00:05]} 39. Kg2 {[%emt 0:00:12]} Ke6 {[%emt 0:01:28]} 40. h3 {[%emt 0:00:48]} Re1 {[%emt 0:01:01]} 41. Kf2 {[%emt 0:30:27]} Rf1+ {[%emt 0:31:19] Weighted Error Value: White=0.06 (flawless) /Black=0.07 (flawless) .  Mistake:       	---       	Black=1      Inaccurate:     	White=1     	Black=2      OK:         	White=17    	Black=17} 1/2-1/2

[Event "Serbian League Women 2024"]
[Site "Bajina Basta"]
[Date "2024.10.03"]
[Round "7.7"]
[White "Maksimovic, Suzana"]
[Black "Mandura, Tijana"]
[Result "1-0"]
[ECO "D31"]
[WhiteElo "2052"]
[BlackElo "2207"]
[Annotator "RC"]
[PlyCount "45"]
[EventDate "2024.09.26"]
[EventType "team-tourn"]
[EventCountry "SRB"]
[SourceTitle "playchess.com"]
[Source "ChessBase"]
[SourceQuality "1"]
[TimeControl "40/5400+30:1800+30"]

1. d4 {[%emt 0:00:09]} d5 {[%emt 0:00:05]} 2. c4 {[%emt 0:00:35]} e6 {[%emt 0:00:07]} 3. Nc3 {[%emt 0:00:55]} c6 {[%emt 0:00:12]} 4. e4 {[%emt 0:01:14]} dxe4 {[%emt 0:00:07]} 5. Nxe4 {[%emt 0:00:06]} Bb4+ {[%emt 0:00:08]} 6. Bd2 {[%emt 0:00:09]} Qxd4 {[%emt 0:00:13]} 7. Bxb4 {[%emt 0:00:08]} Qxe4+ {[%emt 0:00:05]} 8. Be2 {[%emt 0:01:13]} Na6 {[%emt 0:00:27]} 9. Ba5 {[%emt 0:01:10]} b6 {[%emt 0:00:45]} 10. Qd6 {[%emt 0:00:48]} Bd7 {[%emt 0:02:21]} 11. O-O-O {[%emt 0:10:41]} O-O-O {[%emt 0:12:28]} 12. Bc3 {[%emt 0:02:39]} f6 {[%emt 0:13:21]} 13. Qa3 {[%emt 0:30:57]} Kb7 {[%emt 0:04:20]} 14. Bf3 {[%emt 0:01:07]} Qf4+ {[%emt 0:01:44]} 15. Rd2 {[%emt 0:08:05]} Nh6 {[%emt 0:08:54]} 16. Ne2 {[%emt 0:06:08]} Qxc4 {[%emt 0:09:02]} 17. Rhd1 {[%emt 0:06:10]} Kc8 {[%emt 0:04:08]} 18. b3 {[%emt 0:07:10]} Qb5 {[%emt 0:00:18]} 19. Nd4 {[%emt 0:00:05]} Qc5 {[%emt 0:04:49]} 20. Qxa6+ {[%emt 0:00:06]} Kc7 {[%emt 0:00:15]} 21. Qxa7+ {[%emt 0:04:27]} Kc8 {[%emt 0:00:03]} 22. Nb5 {[%emt 0:01:35]} Qxb5 {[%emt 0:00:55]} 23. Rxd7 {[%emt 0:00:38]} 1-0

[Event "Serbian League Women 2024"]
[Site "Bajina Basta"]
[Date "2024.10.03"]
[Round "7.9"]
[White "Bivol, Alina"]
[Black "Gaponenko, Inna"]
[Result "0-1"]
[ECO "B76"]
[WhiteElo "2345"]
[BlackElo "2324"]
[Annotator "TA"]
[PlyCount "48"]
[EventDate "2024.09.26"]
[EventType "team-tourn"]
[EventCountry "SRB"]
[SourceTitle "playchess.com"]
[Source "ChessBase"]
[SourceQuality "1"]
[TimeControl "40/5400+30:1800+30"]

{[%evp 16,48,41,6,16,30,35,7,28,10,0,-14,0,-7,-12,-90,-63,-100,-83,-388,-399,-550,-550,-542,-321,-735,-600,-630,-622,-1411,-1359,-1335,-1335,-1125,-1097]} 1. e4 {[%emt 0:00:07]} c5 {[%emt 0:00:05]} 2. Nf3 {[%emt 0:00:17]} d6 {[%emt 0:00:07]} 3. d4 {[%emt 0:00:21]} cxd4 {[%emt 0:00:05]} 4. Nxd4 {[%emt 0:00:05]} Nf6 {[%emt 0:00:04]} 5. Nc3 {[%emt 0:00:11]} g6 {[%emt 0:00:58]} 6. Bc4 {[%emt 0:01:15]} Bg7 {[%emt 0:00:12]} 7. f3 {[%emt 0:00:13]} O-O {[%emt 0:01:17]} 8. Be3 {[%emt 0:00:09]} Nc6 {[%emt 0:00:06]} 9. Qe2 {[%emt 0:04:02]} Na5 {[%emt 0:18:34]} 10. O-O-O {[%emt 0:05:43][%cal Oe4e5]} Qc7 {[%emt 0:15:28]} 11. Bb3 {[%emt 0:11:34]} a6 {[%emt 0:04:19] White must now prevent ...e5. The position is equal.} 12. Qd2 {[%emt 0:10:17]} b5 {[%emt 0:24:39]} 13. h4 {[%emt 0:05:24]} b4 {[%emt 0:05:51]} 14. Nd5 {[%emt 0:02:08]} Nxb3+ {[%emt 0:03:56]} 15. Nxb3 {[%emt 0:01:21]} (15. axb3 $11 {remains equal.} Nxd5 16. exd5) 15... Nxd5 $17 {[%emt 0:00:21]} 16. exd5 {[%emt 0:05:29][%cal Oe3h6]} a5 {[%emt 0:00:04]} 17. Bh6 $2 {[%emt 0:09:57][%mdl 8192]} (17. Bd4 $17 {is a better chance.} a4 18. Na1 (18. Bxg7 $2 axb3 19. Bxf8 Bf5 $19)) 17... a4 $19 {[%emt 0:01:03] ...Bxh6 is the strong threat.} 18. Na1 {[%emt 0:01:01]} Bxh6 {[%emt 0:06:51]} 19. Qxh6 {[%emt 0:00:01]} Bf5 {[%emt 0:00:04] Threatens to win with ...a3.} 20. g4 $2 {[%emt 0:08:43] [#]} (20. Qf4 b3 21. Rd2) 20... Bxc2 $1 {[%emt 0:03:03][%mdl 512] Black is clearly winning.} 21. Nxc2 {[%emt 0:00:04] aiming for Kb1.} b3 {[%emt 0:00:18][%csl Gb3][%cal Rc7c2]} 22. Rd2 {[%emt 0:00:06][%cal Oa2a3] [#]} a3 $1 {[%emt 0:03:53]} ({Worse is} 22... bxc2 23. Rxc2 Qb7 24. h5 $11) 23. bxa3 {[%emt 0:03:22]} Rxa3 {[%emt 0:03:10][%cal Ob3a2] ( -> ...bxa2!)} 24. Kd1 {[%emt 0:03:19]} Rxa2 {[%emt 0:02:54] Black took control after the opening.   Weighted Error Value: White=1.08/Black=0.27 (precise) .  Loses game:     	White=1     	---        Mistake:       	White=2     	---        Inaccurate:     	White=3     	Black=1      OK:         	White=1     	Black=6      Best:        	---       	Black=2} 0-1

[Event "Serbian League Women 2024"]
[Site "Bajina Basta"]
[Date "2024.10.03"]
[Round "7.10"]
[White "Doluhanova, Evgeniya"]
[Black "Velikic, Adela"]
[Result "1-0"]
[ECO "A12"]
[WhiteElo "2304"]
[BlackElo "2260"]
[Annotator "RC"]
[PlyCount "95"]
[EventDate "2024.09.26"]
[EventType "team-tourn"]
[EventCountry "SRB"]
[SourceTitle "playchess.com"]
[Source "ChessBase"]
[SourceQuality "1"]
[TimeControl "40/5400+30:1800+30"]

1. Nf3 {[%emt 0:00:06]} d5 {[%emt 0:00:09]} 2. e3 {[%emt 0:00:04]} Nf6 {[%emt 0:02:25]} 3. c4 {[%emt 0:00:10]} c6 {[%emt 0:00:53]} 4. b3 {[%emt 0:00:27]} Bf5 {[%emt 0:01:11]} 5. Bb2 {[%emt 0:00:10]} e6 {[%emt 0:01:31]} 6. Be2 {[%emt 0:00:22]} h6 {[%emt 0:00:31]} 7. O-O {[%emt 0:00:18]} Bd6 {[%emt 0:04:17]} 8. d3 {[%emt 0:01:18]} O-O {[%emt 0:03:29]} 9. Nbd2 {[%emt 0:01:44]} Be7 {[%emt 0:06:49]} 10. Qc2 {[%emt 0:07:13]} Bh7 {[%emt 0:05:34]} 11. e4 {[%emt 0:02:20]} a5 {[%emt 0:14:46]} 12. Ne5 {[%emt 0:06:14]} Na6 {[%emt 0:04:50]} 13. a3 {[%emt 0:00:47]} Nc5 {[%emt 0:03:39]} 14. Rad1 {[%emt 0:07:46]} Qb8 {[%emt 0:07:34]} 15. exd5 {[%emt 0:18:59]} cxd5 {[%emt 0:01:04]} 16. Bd4 {[%emt 0:06:31]} Rc8 {[%emt 0:13:49]} 17. h3 {[%emt 0:07:25]} Qd6 {[%emt 0:07:37]} 18. Ndf3 {[%emt 0:13:39]} Ne8 {[%emt 0:06:42]} 19. b4 {[%emt 0:04:11]} axb4 {[%emt 0:02:06]} 20. axb4 {[%emt 0:00:06]} Na6 {[%emt 0:00:58]} 21. c5 {[%emt 0:00:16]} Qd8 {[%emt 0:00:56]} 22. Qb3 {[%emt 0:01:01]} f6 {[%emt 0:06:31]} 23. Ng4 {[%emt 0:00:19]} Qd7 {[%emt 0:00:38]} 24. Ne3 {[%emt 0:05:51]} Nec7 {[%emt 0:01:46]} 25. Ra1 {[%emt 0:02:55]} Kh8 {[%emt 0:00:57]} 26. Bc3 {[%emt 0:01:44]} Qb5 {[%emt 0:01:53]} 27. Nd4 {[%emt 0:01:49]} Qe8 {[%emt 0:00:35]} 28. Ndc2 {[%emt 0:01:12]} Nb5 {[%emt 0:00:33]} 29. Bd2 {[%emt 0:00:41]} Nac7 {[%emt 0:00:35]} 30. d4 {[%emt 0:01:08]} Rxa1 {[%emt 0:00:31]} 31. Rxa1 {[%emt 0:00:06]} Ra8 {[%emt 0:00:12]} 32. Ra5 {[%emt 0:01:19]} Qd7 {[%emt 0:00:56]} 33. Rxa8+ {[%emt 0:03:02]} Nxa8 {[%emt 0:00:04]} 34. Qa4 {[%emt 0:00:04]} Nac7 {[%emt 0:00:39]} 35. Na3 {[%emt 0:00:13]} e5 {[%emt 0:00:17]} 36. Bxb5 {[%emt 0:00:53]} Qe6 {[%emt 0:00:35]} 37. Bd7 {[%emt 0:00:17]} Qf7 {[%emt 0:00:45]} 38. Bc3 {[%emt 0:00:36]} exd4 {[%emt 0:00:37]} 39. Bxd4 {[%emt 0:00:06]} f5 {[%emt 0:00:30]} 40. f4 {[%emt 0:01:04]} Bh4 {[%emt 0:00:32]} 41. c6 {[%emt 0:30:49]} bxc6 {[%emt 0:04:11]} 42. Qxc6 {[%emt 0:00:00]} Bd8 {[%emt 0:00:28]} 43. Nb5 {[%emt 0:00:00]} Nxb5 {[%emt 0:01:40]} 44. Qxb5 {[%emt 0:00:00]} Qe7 {[%emt 0:00:14]} 45. Qxd5 {[%emt 0:00:00]} Qxb4 {[%emt 0:01:03]} 46. Be6 {[%emt 0:00:00]} Qb8 {[%emt 0:02:28]} 47. Be5 {[%emt 0:00:00]} Qb6 {[%emt 0:00:51]} 48. Kh2 {[%emt 0:00:00]} 1-0

[Event "Serbian League Women 2024"]
[Site "Bajina Basta"]
[Date "2024.10.03"]
[Round "7.11"]
[White "Zhurova, Anna"]
[Black "Petronic, Sanja"]
[Result "1-0"]
[ECO "C78"]
[WhiteElo "2199"]
[BlackElo "2081"]
[Annotator "RC"]
[PlyCount "83"]
[EventDate "2024.09.26"]
[EventType "team-tourn"]
[EventCountry "SRB"]
[SourceTitle "playchess.com"]
[Source "ChessBase"]
[SourceQuality "1"]
[TimeControl "40/5400+30:1800+30"]

1. e4 {[%emt 0:00:03]} e5 {[%emt 0:00:48]} 2. Nf3 {[%emt 0:00:07]} Nc6 {[%emt 0:00:03]} 3. Bb5 {[%emt 0:00:08]} a6 {[%emt 0:00:45]} 4. Ba4 {[%emt 0:00:15]} Nf6 {[%emt 0:00:09]} 5. O-O {[%emt 0:00:14]} b5 {[%emt 0:00:28]} 6. Bb3 {[%emt 0:00:06]} Bc5 {[%emt 0:00:09]} 7. c3 {[%emt 0:01:08]} d6 {[%emt 0:00:06]} 8. d4 {[%emt 0:01:49]} Bb6 {[%emt 0:00:06]} 9. h3 {[%emt 0:03:30]} O-O {[%emt 0:04:14]} 10. Be3 {[%emt 0:04:03]} Bb7 {[%emt 0:06:01]} 11. Nbd2 {[%emt 0:02:26]} Re8 {[%emt 0:04:09]} 12. d5 {[%emt 0:01:53]} Ne7 {[%emt 0:02:34]} 13. Bxb6 {[%emt 0:01:22]} cxb6 {[%emt 0:01:05]} 14. a4 {[%emt 1:20:26]} bxa4 {[%emt 0:02:08]} 15. Bxa4 {[%emt 0:00:00]} b5 {[%emt 0:13:42]} 16. Bc2 {[%emt 0:00:00]} Ng6 {[%emt 0:01:18]} 17. g3 {[%emt 0:00:00]} Bc8 {[%emt 0:12:58]} 18. Kg2 {[%emt 0:00:00]} h5 {[%emt 0:04:39]} 19. Rh1 {[%emt 0:00:00]} Nh7 {[%emt 0:02:05]} 20. h4 {[%emt 0:00:00]} Bg4 {[%emt 0:06:30]} 21. Qe1 {[%emt 0:00:00]} Qc8 {[%emt 0:01:58]} 22. Qe3 {[%emt 0:00:00]} Nf6 {[%emt 0:00:20]} 23. Ng5 {[%emt 0:00:00]} b4 {[%emt 0:00:25]} 24. Ba4 {[%emt 0:00:00]} Bd7 {[%emt 0:00:58]} 25. Bxd7 {[%emt 0:00:00]} Qxd7 {[%emt 0:00:04]} 26. cxb4 {[%emt 0:00:00]} Qb5 {[%emt 0:01:42]} 27. Rhc1 {[%emt 0:00:00]} Qxb4 {[%emt 0:07:08]} 28. b3 {[%emt 0:00:00]} Ng4 {[%emt 0:02:54]} 29. Qc3 {[%emt 0:00:00]} Qb6 {[%emt 0:00:35]} 30. Qf3 {[%emt 0:00:00]} Rf8 {[%emt 0:01:31]} 31. Nc4 {[%emt 0:00:00]} Qa7 {[%emt 0:09:09]} 32. Nxd6 {[%emt 0:00:00]} Rab8 {[%emt 0:00:36]} 33. Rc2 {[%emt 0:00:00]} Ne7 {[%emt 0:00:56]} 34. Qd3 {[%emt 0:00:00]} Rb6 {[%emt 0:03:56]} 35. Nc4 {[%emt 0:00:00]} Rb4 {[%emt 0:00:31]} 36. Ra4 {[%emt 0:00:00]} Rxa4 {[%emt 0:01:00]} 37. bxa4 {[%emt 0:00:00]} f5 {[%emt 0:01:17]} 38. f3 {[%emt 0:00:00]} fxe4 {[%emt 0:05:42]} 39. Nxe4 {[%emt 0:00:00]} Nf6 {[%emt 0:00:15]} 40. d6 {[%emt 0:00:00]} Nc6 {[%emt 0:00:32]} 41. Nxf6+ {[%emt 0:20:02]} gxf6 {[%emt 0:30:50]} 42. Qd5+ {[%emt 0:00:06]} 1-0

[Event "Serbian League Women 2024"]
[Site "Bajina Basta"]
[Date "2024.10.03"]
[Round "7.12"]
[White "Urosevic, Marija"]
[Black "Srdanovic, Jovana"]
[Result "0-1"]
[ECO "E54"]
[WhiteElo "2060"]
[BlackElo "2142"]
[Annotator "NA RC"]
[PlyCount "66"]
[EventDate "2024.09.26"]
[EventType "team-tourn"]
[EventCountry "SRB"]
[SourceTitle "playchess.com"]
[Source "ChessBase"]
[SourceQuality "1"]
[TimeControl "40/5400+30:1800+30"]

1. d4 {[%emt 0:00:04]} Nf6 {[%emt 0:00:05]} 2. c4 {[%emt 0:00:05]} e6 {[%emt 0:00:04]} 3. Nc3 {[%emt 0:00:06]} Bb4 {[%emt 0:00:05]} 4. e3 {[%emt 0:00:05]} O-O {[%emt 0:00:08]} 5. Bd3 {[%emt 0:00:05]} d5 {[%emt 0:00:23]} 6. Nf3 {[%emt 0:02:23]} dxc4 {[%emt 0:00:15]} 7. Bxc4 {[%emt 0:00:06]} c5 {[%emt 0:00:26]} 8. O-O {[%emt 0:00:19]} cxd4 {[%emt 0:00:34]} 9. exd4 {[%emt 0:00:32]} b6 {[%emt 0:00:42]} 10. Bg5 {[%emt 0:01:41]} Bb7 {[%emt 0:00:39]} 11. Qe2 {[%emt 0:04:39]} Bxc3 {[%emt 0:05:34]} 12. bxc3 {[%emt 0:00:05]} Nbd7 {[%emt 0:00:13]} 13. Rac1 {[%emt 0:15:16]} Qc7 {[%emt 0:00:34]} 14. Bd3 {[%emt 0:00:11]} h6 {[%emt 0:00:32]} 15. Bd2 {[%emt 0:09:42]} Ng4 {[%emt 0:04:33]} 16. Be4 {[%emt 0:02:48]} Bxe4 {[%emt 0:03:11]} 17. Qxe4 {[%emt 0:00:05]} Ngf6 {[%emt 0:00:42]} 18. Qh4 {[%emt 0:02:15]} Qc4 {[%emt 0:01:20]} 19. Rc2 {[%emt 0:15:19]} Rac8 {[%emt 0:02:19]} 20. Rb1 {[%emt 0:10:17]} Qd3 {[%emt 0:12:05]} 21. Ne1 {[%emt 0:00:06]} Qf5 {[%emt 0:02:17]} 22. f3 {[%emt 0:05:50]} Rc4 {[%emt 0:01:16]} 23. g4 {[%emt 0:04:41]} Qg6 {[%emt 0:04:02]} 24. Rb5 {[%emt 0:02:13]} a6 {[%emt 0:01:19]} 25. Rb3 {[%emt 0:03:41]} e5 {[%emt 0:07:55]} 26. Be3 {[%emt 0:04:15]} Nd5 {[%emt 0:01:44]} 27. Bf2 {[%emt 0:02:39]} Re8 {[%emt 0:01:31]} 28. dxe5 {[%emt 0:01:47]} Nxe5 {[%emt 0:01:20]} 29. Qg3 {[%emt 0:02:36]} Nxg4 {[%emt 0:13:56]} 30. Rc1 {[%emt 0:03:13]} Nxf2 {[%emt 0:00:24]} 31. Kxf2 {[%emt 0:00:05]} Qe6 {[%emt 0:00:30]} 32. Ng2 {[%emt 0:02:28]} Nf4 {[%emt 0:02:51]} 33. Rf1 {[%emt 0:02:52]} Nh3+ {[%emt 0:00:08]} 0-1

[Event "Serbian League Women 2024"]
[Site "Bajina Basta"]
[Date "2024.10.03"]
[Round "7.13"]
[White "Aydin, Gulenay"]
[Black "Chelushkina, Irina"]
[Result "1/2-1/2"]
[ECO "B22"]
[WhiteElo "2202"]
[BlackElo "2167"]
[Annotator "RC"]
[PlyCount "94"]
[EventDate "2024.09.26"]
[EventType "team-tourn"]
[EventCountry "SRB"]
[SourceTitle "playchess.com"]
[Source "ChessBase"]
[SourceQuality "1"]
[TimeControl "40/5400+30:1800+30"]

1. e4 {[%emt 0:00:03]} c5 {[%emt 0:02:38]} 2. c3 {[%emt 0:00:07]} Nf6 {[%emt 0:00:16]} 3. e5 {[%emt 0:00:06]} Nd5 {[%emt 0:00:03]} 4. Nf3 {[%emt 0:00:06]} Nc6 {[%emt 0:00:03]} 5. Bc4 {[%emt 0:00:06]} Nb6 {[%emt 0:01:06]} 6. Bb3 {[%emt 0:00:08]} d5 {[%emt 0:01:33]} 7. exd6 {[%emt 0:00:10]} c4 {[%emt 0:00:05]} 8. Bc2 {[%emt 0:00:05]} Qxd6 {[%emt 0:00:10]} 9. O-O {[%emt 0:00:24]} g6 {[%emt 0:01:53]} 10. b3 {[%emt 0:02:48]} Bg7 {[%emt 0:03:14]} 11. Na3 {[%emt 0:00:20]} cxb3 {[%emt 0:01:03]} 12. axb3 {[%emt 0:00:06]} O-O {[%emt 0:02:22]} 13. d4 {[%emt 0:00:35]} Bg4 {[%emt 0:00:31]} 14. h3 {[%emt 0:00:18]} Bxf3 {[%emt 0:01:00]} 15. Qxf3 {[%emt 0:00:08]} e5 {[%emt 0:01:51]} 16. Nb5 {[%emt 0:15:51]} Qd5 {[%emt 0:06:48]} 17. Qxd5 {[%emt 0:06:36]} Nxd5 {[%emt 0:00:12]} 18. Be4 {[%emt 0:01:41]} a6 {[%emt 0:00:42]} 19. Bxd5 {[%emt 0:37:40]} axb5 {[%emt 0:00:06]} 20. Rxa8 {[%emt 0:02:25]} Rxa8 {[%emt 0:00:01]} 21. dxe5 {[%emt 0:01:39]} Bxe5 {[%emt 0:00:43]} 22. c4 {[%emt 0:03:57]} b4 {[%emt 0:12:19]} 23. Bd2 {[%emt 0:04:41]} Ra2 {[%emt 0:03:09]} 24. Bxc6 {[%emt 0:02:36]} Rxd2 {[%emt 0:01:40]} 25. Bxb7 {[%emt 0:02:12]} Bd4 {[%emt 0:00:30]} 26. Bf3 {[%emt 0:08:52]} Rb2 {[%emt 0:00:45]} 27. c5 {[%emt 0:05:37]} Bxc5 {[%emt 0:00:42]} 28. Bd5 {[%emt 0:00:05]} h5 {[%emt 0:00:32]} 29. h4 {[%emt 0:01:38]} Kg7 {[%emt 0:00:43]} 30. g3 {[%emt 0:00:35]} f5 {[%emt 0:03:00]} 31. Kg2 {[%emt 0:00:18]} Rd2 {[%emt 0:01:48]} 32. Bc4 {[%emt 0:00:28]} Kf6 {[%emt 0:00:39]} 33. Kf3 {[%emt 0:00:24]} Rb2 {[%emt 0:02:41]} 34. Bd5 {[%emt 0:01:23]} g5 {[%emt 0:00:32]} 35. hxg5+ {[%emt 0:00:06]} Kxg5 {[%emt 0:00:06]} 36. Bf7 {[%emt 0:00:43]} Kf6 {[%emt 0:00:57]} 37. Bd5 {[%emt 0:00:25]} Rc2 {[%emt 0:00:30]} 38. Bc4 {[%emt 0:01:05]} Bd4 {[%emt 0:01:50]} 39. Bd5 {[%emt 0:01:27]} Bc5 {[%emt 0:04:17]} 40. Bc4 {[%emt 0:00:12]} Rc3+ {[%emt 0:07:19]} 41. Kg2 {[%emt 0:31:14]} Rc2 {[%emt 0:32:17]} 42. Kf3 {[%emt 0:00:06]} Kg5 {[%emt 0:00:21]} 43. Bf7 {[%emt 0:00:00]} Rc3+ {[%emt 0:00:00]} 44. Kg2 {[%emt 0:00:00]} f4 {[%emt 0:00:00]} 45. gxf4+ {[%emt 0:00:00]} Kxf4 {[%emt 0:00:00]} 46. Bxh5 {[%emt 0:00:00]} Rxb3 {[%emt 0:00:00]} 47. Rc1 {[%emt 0:00:00]} Rc3 {[%emt 0:00:00]} 1/2-1/2